bitfinex/quotes_ETHUSD_20241004
["timestamp","ask_amount","ask_price","bid_price","bid_amount"]
[1728053400496,4.21343,2373.4,2373.0,0.7611]
[1728053400709,4.21357,2373.3,2372.8,4.98643]
[1728053401383,4.21331,2373.5,2373.1,4.21389]
[1728053401556,4.21331,2373.5,2373.0,4.21404]
[1728053401893,4.21331,2373.5,2372.9,4.21413]
[1728053401894,15.73596,2373.7,2373.2,5.03296]
[1728053402101,4.21301,2373.6,2373.2,5.03296]
[1728053402597,7.31,2373.7,2373.2,5.033]
[1728053402801,11.52291,2373.7,2373.2,0.8194]
[1728053403093,7.31,2373.7,2373.4,4.21336]
[1728053403593,11.52293,2373.7,2373.2,5.03309]
[1728053403794,4.2132,2373.5,2373.2,0.8194]
[1728053404092,11.52292,2373.7,2373.3,4.21345]
[1728053404291,11.52292,2373.7,2373.2,5.03303]
[1728053404292,7.31,2373.7,2373.2,0.8194]
[1728053404492,4.21328,2373.5,2373.2,0.8194]
[1728053404789,7.31,2373.7,2373.3,0.503323]
[1728053404961,7.31,2373.7,2373.2,5.03311]
[1728053405162,11.5229,2373.7,2373.3,4.21353]
[1728053405353,11.5229,2373.7,2373.2,0.8194]
[1728053405569,4.21308,2373.6,2373.2,5.0331]
[1728053405971,4.21308,2373.6,2373.2,5.03307]
[1728053406469,11.52295,2373.7,2373.3,4.21345]
[1728053406833,7.31,2373.7,2373.5,4.21308]
[1728053406980,4.2124,2374.0,2373.6,4.213]
[1728053407302,5.64843448,2374.1,2373.5,4.21308]
[1728053407303,3.0,2374.1,2373.5,4.21314]
[1728053407510,3.45403448,2374.2,2373.7,4.21271]
[1728053407709,5.01762,2374.2,2373.7,4.21271]
[1728053408374,0.1184697,2374.3,2373.9,3.99660827]
[1728053408707,0.1184697,2374.3,2373.5,0.421314]
[1728053408708,0.1184697,2374.3,2374.1,0.7837]
[1728053408918,4.212,2374.2,2373.8,0.7837]
[1728053409099,4.21212,2374.1,2373.8,0.7837]
[1728053409269,4.21212,2374.1,2373.6,4.21287]
[1728053409481,4.21234,2374.0,2373.6,1.2471184]
[1728053409683,4.21234,2374.0,2373.6,4.99666]
[1728053409919,8.42439,2374.1,2373.6,4.99666]
[1728053410122,4.96793,2374.1,2373.4,0.7837]
[1728053410680,4.21281,2373.8,2373.4,0.7837]
[1728053411228,4.21284,2373.7,2373.4,0.7837]
[1728053411725,4.21278,2373.8,2373.3,4.21352]
[1728053411882,4.21251,2373.9,2373.4,4.21326]
[1728053412091,4.21251,2373.9,2373.5,4.21307]
[1728053412392,4.21251,2373.9,2373.2,0.7521]
[1728053412393,0.9010697,2374.3,2373.9,5.01157]
[1728053412611,0.1184697,2374.3,2374.1,4.21195]
[1728053413849,0.1184697,2374.3,2373.9,5.01141]
[1728053414008,0.1184697,2374.3,2374.1,4.21211]
[1728053414362,0.1184697,2374.3,2373.9,5.01141]
[1728053414497,0.1184697,2374.3,2374.0,4.21225]
[1728053415299,0.1184697,2374.3,2374.0,4.21226]
[1728053415500,0.1184697,2374.3,2374.1,4.21202]
[1728053419164,0.1184697,2374.3,2374.0,4.21227]
[1728053419535,0.1184697,2374.3,2374.0,8.42448]
[1728053419734,0.1184697,2374.3,2374.0,4.21221]
[1728053419954,0.1184697,2374.3,2374.0,4.21217]
[1728053420432,0.1184697,2374.3,2374.0,4.713287]
[1728053421151,0.1184697,2374.3,2374.0,8.925437]
[1728053421539,0.1184697,2374.3,2374.1,4.2121]
[1728053422051,0.1184697,2374.3,2374.0,4.713277]
[1728053422387,0.1184697,2374.3,2374.0,8.925467]
[1728053422542,0.1184697,2374.3,2374.1,0.61900343]
[1728053423348,0.1184697,2374.3,2374.1,4.83111343]
[1728053423549,0.1184697,2374.3,2374.1,0.61900343]
[1728053423777,0.1184697,2374.3,2374.1,4.83112343]
[1728053425394,0.1184697,2374.3,2374.2,4.21194]
[1728053425606,0.1184697,2374.3,2374.2,4.713067]
[1728053426089,0.1184697,2374.3,2374.2,6.040667]
[1728053426451,0.1184697,2374.3,2374.2,9.040667]
[1728053427567,0.7954,2375.6,2374.4,0.4231]
[1728053427777,0.7954,2375.9,2375.7,4.20927]
[1728053427980,0.8001,2376.2,2375.7,4.20927]
[1728053428297,0.8001,2376.2,2375.4,0.8253]
[1728053428298,2.031945,2376.2,2375.4,0.8253]
[1728053428463,3.99660827,2376.1,2375.5,4.20954]
[1728053428791,3.99660827,2376.1,2375.4,0.8253]
[1728053428990,4.20919,2375.8,2375.4,0.8253]
[1728053429193,8.41779,2376.0,2375.4,5.0351]
[1728053429497,8.41776,2376.0,2375.5,4.2095]
[1728053429650,4.20902,2375.9,2375.4,0.8253]
[1728053429851,4.20904,2375.9,2375.4,1.44430343]
[1728053430171,4.20938,2375.7,2375.2,7.21013]
[1728053430366,4.20938,2375.7,2375.2,3.0]
[1728053430563,4.20937,2375.7,2375.2,7.21017]
[1728053431870,0.8001,2376.2,2375.2,3.0]
[1728053432092,4.209,2375.9,2375.4,8.41938]
[1728053432300,4.20884,2376.0,2375.4,4.20965]
[1728053432523,4.20884,2376.0,2375.6,4.20945]
[1728053432524,0.0772044,2375.9,2375.6,4.20945]
[1728053432816,0.0772044,2375.9,2375.7,4.20916]
[1728053433017,0.0772044,2375.9,2375.0,3.0]
[1728053433018,0.8633044,2375.9,2375.0,3.0]
[1728053433223,4.9951,2375.9,2375.4,4.20972]
[1728053433428,0.07452935,2375.8,2375.4,4.2097]
[1728053433729,0.07452935,2375.8,2375.7,4.75928]
[1728053433884,4.20886,2376.0,2375.6,4.20946]
[1728053434082,4.20886,2376.0,2375.4,5.03634]
[1728053434083,4.20901,2375.9,2375.4,5.03634]
[1728053434378,4.20901,2375.9,2375.5,4.20962]
[1728053434379,0.07473161,2375.9,2375.5,4.20962]
[1728053434583,0.07473161,2375.9,2375.6,4.20946]
[1728053434793,4.20876,2376.0,2375.5,4.20963]
[1728053434999,0.07172614,2375.8,2375.5,4.20963]
[1728053435292,0.0717744,2375.7,2375.4,5.03642]
[1728053435489,4.20876,2376.0,2375.4,5.03642]
[1728053435689,8.41767,2376.0,2375.4,5.03642]
[1728053435906,0.07204587,2375.9,2375.5,4.20956]
[1728053436097,4.28100587,2375.9,2375.5,4.20956]
[1728053436792,4.2091,2375.8,2375.4,5.03649]
[1728053437238,4.28072552,2375.7,2375.2,4.21004]
[1728053437595,4.20953,2375.6,2375.2,4.21004]
[1728053437839,4.20953,2375.6,2375.1,4.96716]
[1728053437997,0.07154763,2375.5,2375.1,9.17737]
[1728053438309,4.28118763,2375.5,2375.1,4.96711]
[1728053438630,4.0681559,2375.5,2375.1,7.96724]
[1728053438796,0.07154763,2375.5,2375.3,4.20994]
[1728053439255,8.20595827,2375.7,2375.3,4.20994]
[1728053439390,0.07118733,2375.4,2375.1,4.21018]
[1728053439595,4.20969,2375.5,2375.1,4.21018]
[1728053439832,0.07105156,2375.3,2375.0,4.21049]
[1728053440018,9.01329827,2375.5,2375.1,4.21034]
[1728053440537,13.22306827,2375.5,2375.0,8.42091]
[1728053440851,4.28122509,2375.4,2375.0,4.21043]
[1728053441053,0.07133509,2375.4,2375.1,4.21026]
[1728053442068,1.0011116,2375.4,2375.0,4.21039]
[1728053442222,4.21006,2375.3,2374.9,4.21067]
[1728053442608,0.07089096,2375.2,2375.0,4.2105]
[1728053443012,0.807,2375.5,2375.0,4.2105]
[1728053443234,5.01664,2375.5,2375.0,4.9883]
[1728053443418,5.01664,2375.5,2375.1,4.21034]
[1728053443741,5.01664,2375.5,2375.1,4.21032]
[1728053443902,5.01664,2375.5,2375.0,4.98831]
[1728053444102,5.01664,2375.5,2375.0,4.21051]
[1728053444306,4.2099,2375.4,2375.0,4.21051]
[1728053444731,7.06992083,2375.5,2375.0,4.21043]
[1728053445042,5.01664,2375.5,2375.1,4.21034]
[1728053445745,9.22643,2375.5,2375.0,4.21043]
[1728053445957,4.20984,2375.4,2375.0,4.21043]
[1728053446249,4.21019,2375.2,2374.8,4.99112]
[1728053446554,4.21001,2375.3,2374.8,9.20184]
[1728053446916,8.20650827,2375.4,2375.0,4.21052]
[1728053447131,5.01674,2375.5,2375.0,8.42084]
[1728053447335,5.01674,2375.5,2375.1,4.21032]
[1728053447594,0.807,2375.5,2375.1,4.21032]
[1728053447797,7.31,2375.7,2375.3,4.20991]
[1728053448070,11.5194,2375.7,2375.3,8.41983]
[1728053448659,0.8108,2375.8,2375.4,4.2098]
[1728053448660,5.01993,2375.8,2375.4,4.2098]
[1728053448933,5.01993,2375.8,2375.2,4.21004]
[1728053448934,3.99660827,2375.7,2375.2,4.21004]
[1728053449160,4.9668,2375.4,2375.0,4.21046]
[1728053449341,0.7569,2375.4,2375.2,4.2101]
[1728053449555,0.7569,2375.4,2375.1,4.21027]
[1728053449731,4.96682,2375.4,2374.9,4.2106]
[1728053449937,4.21008,2375.3,2374.9,4.2106]
[1728053450432,4.21008,2375.3,2374.9,8.42121]
[1728053450633,4.21008,2375.3,2374.9,4.2106]
[1728053450878,0.7569,2375.4,2375.0,4.21045]
[1728053450879,4.96678,2375.4,2375.0,4.21045]
[1728053451081,4.96678,2375.4,2374.8,0.7736]
[1728053451247,4.20999,2375.3,2374.9,4.21067]
[1728053451642,4.20999,2375.3,2374.8,4.98443]
[1728053451643,4.2102,2375.2,2374.8,4.98443]
[1728053451881,4.96674,2375.4,2374.9,4.21061]
[1728053452084,0.7569,2375.4,2375.1,4.21029]
[1728053452573,0.7569,2375.4,2375.1,4.21034]
[1728053452775,4.96671,2375.4,2375.0,4.2105]
[1728053452988,0.7569,2375.4,2374.9,4.21056]
[1728053453158,4.96675,2375.4,2375.0,4.21044]
[1728053453363,4.21008,2375.3,2374.9,8.42117]
[1728053453686,4.21004,2375.3,2374.9,4.21062]
[1728053454663,4.21004,2375.3,2374.9,4.21061]
[1728053454858,4.21004,2375.3,2374.7,11.42179]
[1728053454859,4.21024,2375.2,2374.7,11.42179]
[1728053455079,4.21024,2375.2,2374.8,4.21076]
[1728053455590,0.07052929,2375.1,2374.8,4.21076]
[1728053455957,0.07052929,2375.1,2374.9,4.2106]
[1728053456162,4.96673,2375.4,2375.0,4.21052]
[1728053456385,0.07080086,2375.3,2375.0,4.21052]
[1728053457694,4.28080086,2375.3,2374.9,4.21067]
[1728053458097,4.28080086,2375.3,2374.7,7.21091]
[1728053458098,4.21018,2375.2,2374.8,4.21083]
[1728053458401,9.00716827,2375.0,2374.5,7.21132]
[1728053458574,4.21078,2374.9,2374.5,4.21132]
[1728053458757,0.07053469,2374.8,2374.5,4.21132]
[1728053459390,4.28148469,2374.8,2374.4,4.21151]
[1728053459606,4.28148469,2374.8,2374.4,4.21144]
[1728053459902,4.28148469,2374.8,2374.0,4.21228]
[1728053459903,4.21143,2374.5,2374.0,4.21219]
[1728053460098,4.82810827,2374.6,2373.9,0.7905]
[1728053460252,4.21229,2374.0,2373.9,0.7905]
[1728053460451,4.21196,2374.2,2373.9,0.7905]
[1728053460758,4.21143,2374.5,2374.1,0.7681]
[1728053461002,0.8086,2374.9,2374.1,4.98021]
[1728053461225,4.21104,2374.8,2374.2,0.8012]
[1728053461496,4.21123,2374.6,2374.3,0.55]
[1728053461990,4.21149,2374.5,2374.3,0.55]
[1728053462402,8.42263,2374.6,2374.3,0.55]
[1728053462553,4.21123,2374.6,2374.3,0.55]
[1728053462755,4.21123,2374.6,2374.4,0.556312]
[1728053462953,4.21157,2374.5,2374.2,0.8012]
[1728053463399,4.21123,2374.6,2374.2,0.8012]
[1728053463600,4.75440827,2375.1,2374.2,5.01303]
[1728053463783,4.21171,2374.4,2374.0,0.7639]
[1728053464106,4.77950827,2374.7,2373.8,0.7639]
[1728053464107,3.99660827,2374.3,2373.8,0.7639]
[1728053464392,4.21222,2374.1,2373.8,1.261557]
[1728053464557,4.21167,2374.4,2374.0,4.21229]
[1728053464975,0.7605,2374.5,2374.1,4.21205]
[1728053465189,0.7605,2374.5,2374.2,4.21193]
[1728053465457,4.21133,2374.6,2374.2,4.21193]
[1728053465655,3.99660827,2374.7,2374.3,4.21173]
[1728053465656,4.21108,2374.7,2374.3,4.21173]
[1728053465921,0.7605,2374.8,2374.4,4.21145]
[1728053466131,4.21057,2375.0,2374.6,4.21112]
[1728053466417,0.8275,2375.1,2374.6,4.21112]
[1728053466418,5.03786,2375.1,2374.6,4.21112]
[1728053466629,4.21073,2374.9,2374.6,0.497657]
[1728053466835,9.03446827,2375.1,2374.6,4.21113]
[1728053467037,4.21058,2375.0,2374.2,0.7692]
[1728053467181,9.03445827,2375.1,2374.6,4.21121]
[1728053467386,9.03445827,2375.1,2374.6,4.99651]
[1728053467587,5.03785,2375.1,2374.6,5.496161]
[1728053467814,4.21019,2375.2,2374.8,8.42165]
[1728053468001,0.7634,2375.3,2375.0,4.21052]
[1728053468208,0.7634,2375.3,2375.0,8.42104]
[1728053468523,4.20986,2375.4,2375.0,4.97292]
[1728053468882,4.20966,2375.5,2375.0,9.18331]
[1728053469118,4.20964,2375.5,2375.1,4.21032]
[1728053469505,0.8217,2375.6,2375.0,5.59322943]
[1728053469506,0.8217,2375.6,2375.2,4.21011]
[1728053469679,0.8217,2375.6,2375.3,4.20997]
[1728053469884,5.03116,2375.6,2375.2,4.21011]
[1728053470084,4.20931,2375.7,2375.3,4.20998]
[1728053470321,0.7684,2375.8,2375.4,4.20971]
[1728053470640,0.7684,2375.8,2375.3,4.709631]
[1728053470641,0.06306045,2375.7,2375.5,4.20956]
[1728053470796,0.06306045,2375.7,2375.4,0.8317]
[1728053470997,4.20929,2375.7,2375.4,0.8317]
[1728053471191,0.06281162,2375.6,2375.2,4.21014]
[1728053471382,4.20911,2375.8,2375.4,4.20981]
[1728053471583,0.06251892,2375.7,2375.4,4.20981]
[1728053471888,4.20929,2375.7,2375.3,4.714164]
[1728053472094,0.05993773,2375.6,2375.3,4.714164]
[1728053472782,0.05993773,2375.6,2375.1,0.8317]
[1728053472783,0.05993773,2375.6,2375.1,5.04194]
[1728053473025,4.20982,2375.4,2375.1,0.8317]
[1728053473185,4.20982,2375.4,2374.7,7.46]
[1728053473186,4.20982,2375.4,2374.8,8.0149]
[1728053473386,0.06009883,2375.3,2375.0,4.21052]
[1728053473592,0.06009883,2375.3,2374.8,8.0149]
[1728053473825,8.2666971,2375.3,2374.8,3.8042]
[1728053474141,8.2666971,2375.3,2374.6,0.7705]
[1728053474147,8.20710827,2375.1,2374.6,0.7705]
[1728053474318,4.21083,2374.9,2374.4,5.00701]
[1728053474625,0.05922933,2374.8,2374.5,4.21138]
[1728053475040,0.05922933,2374.8,2374.6,4.21113]
[1728053475487,4.21054,2375.0,2374.6,4.21113]
[1728053475684,4.21054,2375.0,2374.5,4.21138]
[1728053475924,0.05936517,2374.9,2374.5,8.42269]
[1728053476805,0.05936517,2374.9,2374.5,4.21131]
[1728053477006,4.27009517,2374.9,2374.5,4.21131]
[1728053477226,0.05936517,2374.9,2374.5,4.2113]
[1728053477528,0.05936517,2374.9,2374.5,8.42261]
[1728053478415,4.27008517,2374.9,2374.4,0.7955]
[1728053478615,5.02762,2374.8,2374.3,4.21165]
[1728053478817,8.20773827,2374.7,2374.2,5.00032]
[1728053479172,4.21126,2374.6,2374.1,4.21198]
[1728053479591,8.26711762,2374.5,2374.1,4.21211]
[1728053479798,0.05907935,2374.5,2374.1,4.21203]
[1728053480015,0.05907935,2374.5,2374.2,4.2119]
[1728053480896,0.05907935,2374.5,2374.1,4.712083]
[1728053480897,0.05907935,2374.5,2374.3,4.21169]
[1728053481095,0.05907935,2374.5,2374.4,4.21159]
[1728053481301,5.02748,2374.8,2374.4,4.21159]
[1728053481621,0.8089,2375.0,2374.6,4.2112]
[1728053481827,0.05872874,2374.7,2374.6,4.2112]
[1728053482009,5.01945,2375.0,2374.6,4.2112]
[1728053482217,0.8089,2375.0,2374.6,4.2112]
[1728053482551,0.8089,2375.0,2374.7,4.21097]
[1728053482731,0.8089,2375.0,2374.6,8.4223]
[1728053482901,0.8089,2375.0,2374.6,8.922353]
[1728053483328,0.8089,2375.0,2374.7,4.211]
[1728053484046,0.8089,2375.0,2374.5,0.8171]
[1728053484047,9.01614827,2375.0,2374.5,0.8171]
[1728053484335,9.01614827,2375.0,2374.4,4.2115]
[1728053484336,4.21079,2374.9,2374.4,4.2115]
[1728053484724,8.42162,2374.9,2374.4,4.2115]
[1728053484930,4.21079,2374.9,2374.5,4.21139]
[1728053485240,0.8089,2375.0,2374.6,4.21121]
[1728053485408,5.01947,2375.0,2374.5,4.21139]
[1728053485602,0.05939557,2374.9,2374.6,4.21114]
[1728053486746,0.05939557,2374.9,2374.4,4.21148]
[1728053486747,4.2109,2374.8,2374.4,4.21157]
[1728053487045,0.05904483,2374.7,2374.4,4.21157]
[1728053487247,0.8126,2374.6,2374.1,7.21196]
[1728053487403,5.0219,2374.8,2374.4,4.21151]
[1728053487601,0.0589131,2374.7,2374.5,4.21141]
[1728053487807,5.0216,2375.0,2374.5,4.21141]
[1728053488110,5.0216,2375.0,2374.4,0.8054]
[1728053488111,0.811,2375.0,2374.7,4.21104]
[1728053488714,0.811,2375.0,2374.6,4.21119]
[1728053488938,5.02153,2375.0,2374.6,4.21119]
[1728053489718,5.02153,2375.0,2374.4,5.01682]
[1728053489948,3.99660827,2374.9,2374.5,4.21137]
[1728053490152,8.20744827,2374.9,2374.5,4.21137]
[1728053490728,0.8252,2374.6,2374.2,4.2119]
[1728053490935,5.03651,2374.6,2374.2,4.2119]
[1728053491414,4.21141,2374.5,2374.1,7.21208]
[1728053491611,8.20838827,2374.3,2373.9,4.21237]
[1728053491817,4.21238,2374.0,2373.6,4.21298]
[1728053492651,8.20908827,2373.9,2373.5,4.21315]
[1728053493053,8.20908827,2373.9,2373.5,4.2131]
[1728053493054,0.8041,2373.8,2373.5,4.2131]
[1728053493709,3.99660827,2373.7,2373.5,4.2131]
[1728053494060,8.42626,2373.6,2373.1,4.21386]
[1728053494357,4.2131,2373.6,2373.1,4.21386]
[1728053494560,4.2131,2373.6,2373.2,4.21364]
[1728053494729,4.2131,2373.6,2373.0,8.42791]
[1728053494730,8.20989827,2373.5,2373.0,8.42791]
[1728053494913,8.20989827,2373.5,2373.0,4.21394]
[1728053495556,4.9968,2373.4,2373.0,4.21394]
[1728053496068,0.7834,2373.4,2373.1,4.21388]
[1728053496353,0.7834,2373.4,2373.0,8.4281]
[1728053496554,0.7834,2373.4,2373.0,4.21405]
[1728053496718,0.7834,2373.4,2373.1,4.21374]
[1728053497193,4.99678,2373.4,2372.9,4.21422]
[1728053497317,0.7834,2373.4,2372.8,4.21434]
[1728053497517,0.7834,2373.4,2372.6,4.21468]
[1728053497518,4.21397,2373.1,2372.6,4.21468]
[1728053497748,4.21397,2373.1,2372.5,7.46]
[1728053497749,4.21373,2373.2,2372.8,4.21441]
[1728053497932,4.21367,2373.3,2372.9,4.21416]
[1728053498136,4.99679,2373.4,2372.9,4.21416]
[1728053498331,0.7834,2373.4,2372.9,4.21416]
[1728053498564,0.7834,2373.4,2373.1,4.21388]
[1728053498747,4.21291,2373.7,2373.2,4.21362]
[1728053498956,4.21291,2373.7,2373.2,4.21361]
[1728053499125,4.21291,2373.7,2373.1,4.21388]
[1728053499327,0.7728,2373.8,2372.9,4.21414]
[1728053499567,4.21305,2373.6,2373.0,4.21406]
[1728053499734,5.20420217,2373.6,2373.0,4.21406]
[1728053500365,4.21346,2373.4,2372.9,4.21417]
[1728053500571,0.7764,2373.5,2373.0,4.21397]
[1728053500727,0.7764,2373.5,2373.2,4.21363]
[1728053500728,0.05724557,2373.3,2373.2,4.21363]
[1728053500922,0.7764,2373.5,2373.2,4.21363]
[1728053500923,0.05747567,2373.4,2373.2,4.21363]
[1728053501126,0.05699548,2373.3,2373.0,4.21394]
[1728053501346,0.05699548,2373.3,2373.1,4.21381]
[1728053501667,0.05685948,2373.2,2373.1,4.21381]
[1728053501826,4.98966,2373.5,2373.0,8.927284]
[1728053502027,0.05685948,2373.2,2373.0,8.927254]
[1728053502326,0.7764,2373.5,2373.1,4.21379]
[1728053502678,1.696642,2373.5,2372.7,0.8098]
[1728053502828,1.696642,2373.5,2372.6,3.55]
[1728053502829,5.69847166,2373.5,2372.6,7.21467]
[1728053503029,4.21399,2373.1,2372.7,4.21457]
[1728053503762,4.21409,2373.0,2372.6,4.21477]
[1728053503961,4.21433,2372.9,2372.5,4.21495]
[1728053505214,4.21451,2372.8,2372.4,4.21513]
[1728053505494,4.21425,2372.9,2372.5,4.21493]
[1728053506099,0.8232,2373.0,2372.4,4.21513]
[1728053506266,0.8232,2373.0,2372.3,3.0]
[1728053506267,0.8232,2373.0,2372.7,4.2145]
[1728053506592,5.04044,2373.3,2372.7,4.2145]
[1728053506764,5.04044,2373.3,2372.9,4.21412]
[1728053506765,0.8268,2373.3,2372.9,4.21412]
[1728053507094,0.8268,2373.3,2373.0,4.214]
[1728053507864,4.21334,2373.5,2373.1,4.21389]
[1728053508471,12.23207166,2373.8,2373.3,4.21352]
[1728053508472,5.04573,2373.8,2373.3,4.21352]
[1728053508796,5.04573,2373.8,2372.7,4.21458]
[1728053508797,4.21325,2373.5,2372.7,0.8204]
[1728053509004,0.833,2373.3,2372.9,4.21417]
[1728053509298,4.21373,2373.2,2372.8,3.0]
[1728053509464,4.21373,2373.2,2372.8,7.2144]
[1728053509662,4.21373,2373.2,2372.8,4.2144]
[1728053509891,4.2139,2373.1,2372.7,7.21457]
[1728053510103,4.21373,2373.2,2372.8,4.21442]
[1728053510402,8.42755,2373.2,2372.7,7.21457]
[1728053510600,4.21391,2373.1,2372.6,11.67476]
[1728053510894,4.21373,2373.2,2372.8,4.21438]
[1728053511111,4.21391,2373.1,2372.7,4.21456]
[1728053511302,4.2138,2373.2,2372.7,8.42905]
[1728053511502,4.2138,2373.2,2372.7,4.21449]
[1728053511811,4.2138,2373.2,2372.8,4.21442]
[1728053513281,9.26019,2373.3,2372.9,4.21422]
[1728053513621,5.04657,2373.3,2372.9,4.21422]
[1728053514587,5.04656,2373.3,2372.9,4.21414]
[1728053514785,0.833,2373.3,2373.0,4.21407]
[1728053515921,0.0569312,2373.2,2372.9,4.21412]
[1728053516128,5.04659,2373.3,2372.9,4.21412]
[1728053516281,0.05679519,2373.1,2373.0,4.21405]
[1728053516479,0.833,2373.3,2373.0,4.21405]
[1728053516716,0.05679519,2373.1,2372.9,4.21412]
[1728053516920,5.04654,2373.3,2372.9,8.42827]
[1728053517075,0.05665917,2373.0,2372.9,8.42827]
[1728053517280,0.833,2373.3,2373.0,4.21393]
[1728053517776,0.7761,2373.5,2373.3,4.2134]
[1728053518188,0.7761,2373.8,2373.5,4.21303]
[1728053518409,8.98716334,2373.8,2373.4,4.21333]
[1728053519120,3.99834334,2373.6,2373.2,4.21359]
[1728053519284,8.21141334,2373.6,2373.2,4.21359]
[1728053519612,4.21285,2373.7,2373.3,4.21345]
[1728053519815,4.77444334,2373.8,2373.3,4.21345]
[1728053520014,8.98712334,2373.8,2373.4,4.21336]
[1728053520218,8.98712334,2373.8,2373.5,4.21314]
[1728053520219,4.77444334,2373.8,2373.5,4.21314]
[1728053520529,1.21422392,2374.1,2373.7,4.21276]
[1728053520710,4.98463,2374.5,2374.1,4.21203]
[1728053521020,2.002663,2374.5,2374.1,4.21198]
[1728053521329,3.99834334,2374.8,2373.7,4.21272]
[1728053521330,4.98409,2374.8,2374.3,4.21163]
[1728053521478,4.98409,2374.8,2374.4,4.2115]
[1728053522093,4.98409,2374.8,2374.3,4.21163]
[1728053522094,6.32670983,2375.0,2374.5,4.21139]
[1728053522357,1.36367098,2374.9,2374.3,4.21163]
[1728053522664,4.21099,2374.8,2374.4,4.21156]
[1728053523327,5.57444098,2374.9,2374.4,4.21156]
[1728053523682,4.21089,2374.8,2374.4,4.21156]
[1728053523970,4.212,2374.2,2373.6,0.7673]
[1728053524186,4.21201,2374.2,2373.4,4.98065]
[1728053524362,4.21244,2374.0,2373.5,4.2131]
[1728053524536,4.21179,2374.3,2373.9,4.21241]
[1728053524726,4.21179,2374.3,2373.9,4.98831]
[1728053524944,5.00643,2374.5,2373.9,4.9883]
[1728053525288,4.21159,2374.4,2373.9,0.7759]
[1728053525569,4.21159,2374.4,2374.0,4.21222]
[1728053525769,4.21159,2374.4,2374.0,4.2122]
[1728053526184,4.21159,2374.4,2374.0,8.42441]
[1728053526914,0.7949,2374.7,2374.2,4.21194]
[1728053527051,5.00603,2374.7,2374.3,4.21175]
[1728053527676,5.00603,2374.7,2374.2,4.21194]
[1728053527881,5.00603,2374.7,2374.3,4.21166]
[1728053528199,4.21036,2375.1,2374.7,4.21093]
[1728053528503,0.8103,2375.4,2374.8,0.88534137]
[1728053528645,0.8103,2375.4,2375.0,4.21044]
[1728053528849,4.21042,2375.1,2374.8,0.8264]
[1728053529085,4.21042,2375.1,2374.6,4.21108]
[1728053529302,4.21053,2375.0,2374.6,4.687188]
[1728053529446,5.72657481,2375.4,2374.7,4.76092]
[1728053529447,4.21016,2375.3,2374.7,4.76092]
[1728053529647,4.21036,2375.1,2374.7,4.76092]
[1728053529880,4.21016,2375.3,2374.7,4.76092]
[1728053530088,4.21018,2375.2,2374.7,4.76092]
[1728053530284,4.21036,2375.1,2374.7,5.40494243]
[1728053530493,4.21036,2375.1,2374.7,0.64402243]
[1728053530650,0.04023866,2375.0,2374.7,4.85494243]
[1728053530851,5.72657481,2375.4,2374.3,0.8125]
[1728053531172,4.21018,2375.2,2374.6,4.21115]
[1728053531379,0.04273071,2375.3,2374.9,4.21056]
[1728053531560,0.8103,2375.4,2374.8,0.7648]
[1728053531561,0.0401557,2375.1,2374.8,4.97558]
[1728053531754,4.21027,2375.2,2374.8,4.97558]
[1728053532011,4.25079381,2375.0,2374.5,4.9761]
[1728053532208,4.21025,2375.2,2374.8,4.21087]
[1728053532497,5.02021,2375.4,2374.8,4.76087]
[1728053532691,0.04014153,2375.1,2374.9,4.21058]
[1728053532849,5.02021,2375.4,2375.0,0.897145]
[1728053533191,9.23017,2375.4,2375.0,0.897145]
[1728053533495,9.23015,2375.4,2375.0,0.897145]
[1728053533701,5.02021,2375.4,2375.0,0.897145]
[1728053533991,4.21021,2375.2,2374.8,4.7607]
[1728053534189,4.20999,2375.3,2374.8,8.42147]
[1728053534397,8.4201,2375.3,2374.8,4.2107]
[1728053534563,4.20999,2375.3,2374.8,4.2107]
[1728053534751,4.21073,2374.9,2374.5,0.7648]
[1728053534955,4.21073,2374.9,2374.3,7.46]
[1728053534956,4.21102,2374.8,2374.3,7.46]
[1728053535157,0.8315,2374.9,2374.4,4.21149]
[1728053535556,4.21068,2375.0,2374.6,4.21116]
[1728053535751,4.21053,2375.0,2374.3,7.46]
[1728053535952,4.21095,2374.8,2374.3,11.67159]
[1728053536153,4.99055,2375.1,2374.3,7.46]
[1728053536360,4.21061,2375.0,2374.5,4.21131]
[1728053536775,4.21084,2374.9,2374.5,4.21131]
[1728053537353,4.21061,2375.0,2374.6,4.21123]
[1728053537754,4.21035,2375.1,2374.7,4.9755]
[1728053537992,3.0,2375.3,2374.7,4.97557]
[1728053538191,3.0,2375.3,2374.7,0.7646]
[1728053538352,3.0,2375.3,2374.6,4.21122]
[1728053538353,4.21064,2375.0,2374.6,4.21122]
[1728053538999,4.2107,2374.9,2374.5,4.976]
[1728053539461,4.21042,2375.1,2374.7,4.21097]
[1728053539656,3.0,2375.3,2374.7,4.21093]
[1728053539857,4.21017,2375.2,2374.7,4.21093]
[1728053540054,4.21013,2375.3,2374.9,4.21068]
[1728053540055,4.21001,2375.3,2374.9,4.21068]
[1728053540357,4.9645,2375.7,2375.3,4.20999]
[1728053540700,4.20959,2375.6,2375.1,4.97234]
[1728053540852,4.20965,2375.5,2375.1,4.97234]
[1728053541081,8.42024,2375.3,2374.8,4.97284]
[1728053541254,4.2101,2375.3,2374.8,4.97284]
[1728053541463,4.21025,2375.2,2374.8,0.762]
[1728053541697,4.21006,2375.3,2374.8,4.9728]
[1728053542206,4.21006,2375.3,2374.9,4.2106]
[1728053542488,4.20999,2375.3,2374.9,4.2106]
[1728053543001,4.20988,2375.4,2375.0,4.21049]